[Event "Titled Tuesday Blitz June 6 Late 2023"]
[White "Wagner, Dennis"]
[Black "Vlassov, Nikolai"]
[WhiteFideId "24650684"]
[BlackFideId "4103360"]
[WhiteElo "2478"]
[BlackElo "2324"]
[Result "0-1"]
[Round "11"]
[TimeControl "180+2"]
[Date "2023.06.07"]
[WhiteClock "0:00:17"]
[BlackClock "0:00:10"]
[Board "25"]

1. d4 {[%clk 0:03:00]}  Nf6 {[%clk 0:02:59]} 2. Nf3 {[%clk 0:03:00]}  e6 {[%clk 0:02:59]} 3. c4 {[%clk 0:03:00]}  Nc6 {[%clk 0:02:58]} 4. g3 {[%clk 0:02:58]}  Bb4+ {[%clk 0:02:57]} 5. Bd2 {[%clk 0:02:56]}  a5 {[%clk 0:02:56]} 6. Bg2 {[%clk 0:02:56]}  d6 {[%clk 0:02:56]} 7. O-O {[%clk 0:02:56]}  e5 {[%clk 0:02:56]} 8. Be3 {[%clk 0:02:37]}  exd4 {[%clk 0:02:52]} 9. Nxd4 {[%clk 0:02:38]}  Nxd4 {[%clk 0:02:50]} 10. Bxd4 {[%clk 0:02:37]}  O-O {[%clk 0:02:47]} 11. Nc3 {[%clk 0:02:36]}  c6 {[%clk 0:02:42]} 12. Qd3 {[%clk 0:02:28]}  Re8 {[%clk 0:02:26]} 13. Rad1 {[%clk 0:02:27]}  Bg4 {[%clk 0:02:25]} 14. Ne4 {[%clk 0:01:57]}  Nxe4 {[%clk 0:02:14]} 15. Bxe4 {[%clk 0:01:58]}  f5 {[%clk 0:01:44]} 16. Bxf5 {[%clk 0:01:49]}  Bxe2 {[%clk 0:01:09]} 17. Bxh7+ {[%clk 0:01:48]}  Kh8 {[%clk 0:01:08]} 18. Bxg7+ {[%clk 0:01:28]}  Kxg7 {[%clk 0:01:08]} 19. Qg6+ {[%clk 0:01:28]}  Kh8 {[%clk 0:00:58]} 20. Rd4 {[%clk 0:00:47]}  Qe7 {[%clk 0:00:47]} 21. Rh4 {[%clk 0:00:37]}  Qxh4 {[%clk 0:00:45]} 22. gxh4 {[%clk 0:00:37]}  Rg8 {[%clk 0:00:45]} 23. Bxg8 {[%clk 0:00:33]}  Rxg8 {[%clk 0:00:44]} 24. Qxg8+ {[%clk 0:00:33]}  Kxg8 {[%clk 0:00:44]} 25. Rc1 {[%clk 0:00:34]}  Bf3 {[%clk 0:00:37]} 26. a3 {[%clk 0:00:29]}  Bc5 {[%clk 0:00:37]} 27. Rc3 {[%clk 0:00:28]}  Be4 {[%clk 0:00:31]} 28. Rb3 {[%clk 0:00:20]}  b6 {[%clk 0:00:29]} 29. Rg3+ {[%clk 0:00:20]}  Kh7 {[%clk 0:00:28]} 30. Kf1 {[%clk 0:00:19]}  d5 {[%clk 0:00:26]} 31. cxd5 {[%clk 0:00:18]}  cxd5 {[%clk 0:00:26]} 32. Ke2 {[%clk 0:00:17]}  d4 {[%clk 0:00:26]} 33. f3 {[%clk 0:00:16]}  Bc6 {[%clk 0:00:19]} 34. Rg5 {[%clk 0:00:13]}  Kh6 {[%clk 0:00:13]} 35. Kd3 {[%clk 0:00:13]}  Bb5+ {[%clk 0:00:13]} 36. Kd2 {[%clk 0:00:13]}  Bc4 {[%clk 0:00:10]} 37. Re5 {[%clk 0:00:10]}  d3 {[%clk 0:00:07]} 38. Re4 {[%clk 0:00:06]}  b5 {[%clk 0:00:07]} 39. a4 {[%clk 0:00:04]}  Bb4+ {[%clk 0:00:06]} 40. Ke3 {[%clk 0:00:04]}  d2 {[%clk 0:00:06]} 41. Rd4 {[%clk 0:00:01]}  Bc5 {[%clk 0:00:05]} 42. Kxd2 {[%clk 0:00:02]}  Bxd4 {[%clk 0:00:05]} 43. axb5 {[%clk 0:00:03]}  Bxb5 {[%clk 0:00:06]} 44. b3 {[%clk 0:00:03]}  Kh5 {[%clk 0:00:05]} 45. f4 {[%clk 0:00:03]}  Kxh4 {[%clk 0:00:05]} 46. f5 {[%clk 0:00:04]}  Kg5 {[%clk 0:00:06]} 47. Kc2 {[%clk 0:00:05]}  Kxf5 {[%clk 0:00:06]} 48. Kb1 {[%clk 0:00:06]}  Kg4 {[%clk 0:00:06]} 49. Ka2 {[%clk 0:00:07]}  Kh3 {[%clk 0:00:07]} 50. Ka3 {[%clk 0:00:08]}  Kxh2 {[%clk 0:00:07]} 51. b4 {[%clk 0:00:07]}  a4 {[%clk 0:00:06]} 52. Ka2 {[%clk 0:00:07]}  Kg3 {[%clk 0:00:07]} 53. Ka3 {[%clk 0:00:08]}  Kf4 {[%clk 0:00:07]} 54. Ka2 {[%clk 0:00:09]}  Ke3 {[%clk 0:00:08]} 55. Ka3 {[%clk 0:00:10]}  Kd3 {[%clk 0:00:08]} 56. Ka2 {[%clk 0:00:11]}  Kc4 {[%clk 0:00:09]} 57. Ka3 {[%clk 0:00:12]}  Kc3 {[%clk 0:00:08]} 58. Ka2 {[%clk 0:00:12]}  Kxb4 {[%clk 0:00:09]} 59. Kb1 {[%clk 0:00:13]}  a3 {[%clk 0:00:09]} 60. Ka2 {[%clk 0:00:14]}  Bc4+ {[%clk 0:00:09]} 61. Kb1 {[%clk 0:00:15]}  a2+ {[%clk 0:00:10]} 62. Kc2 {[%clk 0:00:16]}  a1=Q {[%clk 0:00:10]} 63. Kd2 {[%clk 0:00:17]}  Qb2+ {[%clk 0:00:10]} 64. Ke1 {[%clk 0:00:17]}  Qe2# {[%clk 0:00:10]} 0-1


[Site "https://www.chess.com"]

[Event "Titled Tuesday Blitz June 6 Late 2023"]
[White "Rosen, Eric"]
[Black "Becerra, Juan David"]
[WhiteFideId "2032562"]
[BlackFideId "4404998"]
[WhiteElo "2331"]
[BlackElo "2304"]
[Result "1-0"]
[Round "11"]
[TimeControl "180+2"]
[Date "2023.06.07"]
[WhiteClock "0:00:16"]
[BlackClock "0:00:01"]
[Board "26"]

1. d4 {[%clk 0:03:00]}  d5 {[%clk 0:02:55]} 2. Bf4 {[%clk 0:03:01]}  Nf6 {[%clk 0:02:54]} 3. e3 {[%clk 0:03:01]}  c5 {[%clk 0:02:54]} 4. Nf3 {[%clk 0:03:02]}  Nc6 {[%clk 0:02:51]} 5. Nbd2 {[%clk 0:03:02]}  Bg4 {[%clk 0:02:50]} 6. c3 {[%clk 0:03:02]}  e6 {[%clk 0:02:50]} 7. Qa4 {[%clk 0:03:02]}  Nd7 {[%clk 0:02:50]} 8. Bb5 {[%clk 0:03:00]}  Qc8 {[%clk 0:02:46]} 9. Ne5 {[%clk 0:02:52]}  Ndxe5 {[%clk 0:02:41]} 10. Bxe5 {[%clk 0:02:32]}  a6 {[%clk 0:02:40]} 11. Bxc6+ {[%clk 0:01:47]}  Qxc6 {[%clk 0:02:41]} 12. Qxc6+ {[%clk 0:01:46]}  bxc6 {[%clk 0:02:42]} 13. dxc5 {[%clk 0:01:47]}  f6 {[%clk 0:02:40]} 14. Bd6 {[%clk 0:01:46]}  Bxd6 {[%clk 0:02:40]} 15. cxd6 {[%clk 0:01:47]}  Kd7 {[%clk 0:02:40]} 16. f3 {[%clk 0:01:44]}  Bh5 {[%clk 0:02:40]} 17. O-O-O {[%clk 0:01:45]}  Kxd6 {[%clk 0:02:39]} 18. Ne4+ {[%clk 0:01:40]}  Ke7 {[%clk 0:02:36]} 19. Nc5 {[%clk 0:01:40]}  a5 {[%clk 0:02:35]} 20. e4 {[%clk 0:01:33]}  Kd6 {[%clk 0:02:06]} 21. Nb7+ {[%clk 0:01:26]}  Kc7 {[%clk 0:02:04]} 22. Nc5 {[%clk 0:01:26]}  Kd6 {[%clk 0:02:05]} 23. Nb3 {[%clk 0:01:07]}  Bf7 {[%clk 0:02:01]} 24. Rhe1 {[%clk 0:01:06]}  c5 {[%clk 0:01:53]} 25. Nd2 {[%clk 0:00:55]}  Rhe8 {[%clk 0:01:37]} 26. c4 {[%clk 0:00:51]}  d4 {[%clk 0:01:36]} 27. e5+ {[%clk 0:00:45]}  Kc6 {[%clk 0:01:04]} 28. Ne4 {[%clk 0:00:42]}  f5 {[%clk 0:00:59]} 29. Nd6 {[%clk 0:00:42]}  Rf8 {[%clk 0:00:59]} 30. h4 {[%clk 0:00:35]}  Bg6 {[%clk 0:00:44]} 31. Rd3 {[%clk 0:00:27]}  Rfb8 {[%clk 0:00:28]} 32. Ra3 {[%clk 0:00:26]}  a4 {[%clk 0:00:27]} 33. Rh1 {[%clk 0:00:18]}  Rb4 {[%clk 0:00:22]} 34. h5 {[%clk 0:00:18]}  Be8 {[%clk 0:00:22]} 35. g4 {[%clk 0:00:19]}  fxg4 {[%clk 0:00:20]} 36. fxg4 {[%clk 0:00:20]}  Rab8 {[%clk 0:00:18]} 37. Rh2 {[%clk 0:00:20]}  Bd7 {[%clk 0:00:18]} 38. Rf2 {[%clk 0:00:20]}  h6 {[%clk 0:00:16]} 39. Raf3 {[%clk 0:00:17]}  R8b6 {[%clk 0:00:08]} 40. Rf7 {[%clk 0:00:16]}  a3 {[%clk 0:00:08]} 41. b3 {[%clk 0:00:16]}  Ra6 {[%clk 0:00:05]} 42. Kc2 {[%clk 0:00:15]}  Rab6 {[%clk 0:00:01]} 43. R2f3 {[%clk 0:00:15]}  Kc7 {[%clk 0:00:01]} 44. Rxg7 {[%clk 0:00:16]} 1-0


[Site "https://www.chess.com"]

[Event "Titled Tuesday Blitz June 6 Late 2023"]
[White "Hansen, Eric"]
[Black "Liu, Casper"]
[WhiteFideId "2606771"]
[BlackFideId "1454153"]
[WhiteElo "2561"]
[BlackElo "2221"]
[Result "1-0"]
[Round "11"]
[TimeControl "180+2"]
[Date "2023.06.07"]
[WhiteClock "0:01:20"]
[BlackClock "0:00:16"]
[Board "28"]

1. f4 {[%clk 0:03:00]}  f5 {[%clk 0:02:12]} 2. Nf3 {[%clk 0:03:00]}  Nf6 {[%clk 0:02:13]} 3. g3 {[%clk 0:03:00]}  g6 {[%clk 0:02:13]} 4. Bg2 {[%clk 0:03:00]}  Bg7 {[%clk 0:02:14]} 5. O-O {[%clk 0:03:01]}  O-O {[%clk 0:02:14]} 6. d3 {[%clk 0:03:01]}  e6 {[%clk 0:02:14]} 7. c4 {[%clk 0:03:01]}  d5 {[%clk 0:02:15]} 8. Nc3 {[%clk 0:03:01]}  c6 {[%clk 0:02:15]} 9. Qc2 {[%clk 0:03:01]}  Qb6+ {[%clk 0:02:14]} 10. Kh1 {[%clk 0:03:01]}  d4 {[%clk 0:02:10]} 11. Na4 {[%clk 0:03:00]}  Qd8 {[%clk 0:02:11]} 12. b4 {[%clk 0:02:58]}  Ng4 {[%clk 0:02:11]} 13. h3 {[%clk 0:02:58]}  Nf6 {[%clk 0:02:07]} 14. Kh2 {[%clk 0:02:56]}  a6 {[%clk 0:02:05]} 15. c5 {[%clk 0:02:54]}  Bd7 {[%clk 0:02:01]} 16. Nb6 {[%clk 0:02:54]}  Ra7 {[%clk 0:02:02]} 17. Bb2 {[%clk 0:02:52]}  Be8 {[%clk 0:02:00]} 18. Nxd4 {[%clk 0:02:52]}  Bf7 {[%clk 0:01:58]} 19. Nc4 {[%clk 0:02:51]}  Ng4+ {[%clk 0:01:52]} 20. hxg4 {[%clk 0:02:51]}  Bxd4 {[%clk 0:01:53]} 21. g5 {[%clk 0:02:48]}  h6 {[%clk 0:01:48]} 22. gxh6 {[%clk 0:02:43]}  Qf6 {[%clk 0:01:34]} 23. Bxd4 {[%clk 0:02:43]}  Qxd4 {[%clk 0:01:34]} 24. Bf3 {[%clk 0:02:40]}  Kh7 {[%clk 0:01:33]} 25. e3 {[%clk 0:02:37]}  Qd8 {[%clk 0:01:27]} 26. Ne5 {[%clk 0:02:37]}  Nd7 {[%clk 0:01:26]} 27. Nc4 {[%clk 0:02:34]}  Nf6 {[%clk 0:01:24]} 28. Rh1 {[%clk 0:02:34]}  Kxh6 {[%clk 0:01:23]} 29. Qb2 {[%clk 0:02:34]}  Kg7 {[%clk 0:01:20]} 30. Nd6 {[%clk 0:02:34]}  Rg8 {[%clk 0:01:16]} 31. Kg2 {[%clk 0:02:32]}  Kf8 {[%clk 0:01:17]} 32. Rh6 {[%clk 0:02:30]}  Ne8 {[%clk 0:01:17]} 33. Qe5 {[%clk 0:02:25]}  Nxd6 {[%clk 0:01:17]} 34. cxd6 {[%clk 0:02:25]}  Ra8 {[%clk 0:01:14]} 35. Rah1 {[%clk 0:02:23]}  Qd7 {[%clk 0:01:15]} 36. Rh7 {[%clk 0:02:15]}  Rd8 {[%clk 0:01:14]} 37. Qf6 {[%clk 0:02:15]}  Ke8 {[%clk 0:01:12]} 38. e4 {[%clk 0:01:22]}  Rf8 {[%clk 0:00:21]} 39. e5 {[%clk 0:01:21]}  b6 {[%clk 0:00:16]} 40. Kf2 {[%clk 0:01:20]}  c5 {[%clk 0:00:16]} 41. Bc6 {[%clk 0:01:20]} 1-0


[Site "https://www.chess.com"]

[Event "Titled Tuesday Blitz June 6 Late 2023"]
[White "Schnaider, Ilan"]
[Black "Oro, Faustino"]
[WhiteFideId "169013"]
[BlackFideId "20000197"]
[WhiteElo "2224"]
[BlackElo "1984"]
[Result "1-0"]
[Round "11"]
[TimeControl "180+2"]
[Date "2023.06.07"]
[WhiteClock "0:00:06"]
[BlackClock "0:00:05"]
[Board "29"]

1. e4 {[%clk 0:03:00]}  c5 {[%clk 0:02:55]} 2. Nf3 {[%clk 0:03:00]}  d6 {[%clk 0:02:55]} 3. Bb5+ {[%clk 0:03:00]}  Bd7 {[%clk 0:02:54]} 4. Bxd7+ {[%clk 0:03:01]}  Qxd7 {[%clk 0:02:55]} 5. c4 {[%clk 0:03:01]}  Nc6 {[%clk 0:02:55]} 6. d4 {[%clk 0:02:58]}  cxd4 {[%clk 0:02:55]} 7. Nxd4 {[%clk 0:02:59]}  Nf6 {[%clk 0:02:56]} 8. Nc3 {[%clk 0:02:59]}  g6 {[%clk 0:02:56]} 9. O-O {[%clk 0:02:59]}  Bg7 {[%clk 0:02:57]} 10. Nc2 {[%clk 0:02:34]}  O-O {[%clk 0:02:56]} 11. Bg5 {[%clk 0:02:33]}  Rac8 {[%clk 0:02:56]} 12. Rc1 {[%clk 0:02:30]}  h6 {[%clk 0:02:52]} 13. Bh4 {[%clk 0:02:23]}  a6 {[%clk 0:02:21]} 14. Ne3 {[%clk 0:02:16]}  b5 {[%clk 0:02:17]} 15. Bxf6 {[%clk 0:02:02]}  Bxf6 {[%clk 0:02:16]} 16. cxb5 {[%clk 0:02:02]}  axb5 {[%clk 0:02:16]} 17. Ned5 {[%clk 0:02:03]}  Qe6 {[%clk 0:01:19]} 18. Nxf6+ {[%clk 0:02:03]}  Qxf6 {[%clk 0:01:17]} 19. Nd5 {[%clk 0:02:02]}  Qe6 {[%clk 0:01:13]} 20. Nb6 {[%clk 0:01:29]}  Rc7 {[%clk 0:01:09]} 21. Qd5 {[%clk 0:01:28]}  Qe5 {[%clk 0:00:20]} 22. Rxc6 {[%clk 0:01:06]}  Rxc6 {[%clk 0:00:21]} 23. Qxc6 {[%clk 0:01:05]}  Qxb2 {[%clk 0:00:22]} 24. Nd5 {[%clk 0:00:58]}  e6 {[%clk 0:00:17]} 25. Ne3 {[%clk 0:00:45]}  b4 {[%clk 0:00:14]} 26. Qxd6 {[%clk 0:00:44]}  Ra8 {[%clk 0:00:14]} 27. Nc4 {[%clk 0:00:29]}  Qc3 {[%clk 0:00:11]} 28. Nb6 {[%clk 0:00:27]}  Rxa2 {[%clk 0:00:12]} 29. Qd8+ {[%clk 0:00:27]}  Kg7 {[%clk 0:00:12]} 30. Nd7 {[%clk 0:00:27]}  Kh7 {[%clk 0:00:05]} 31. Qf8 {[%clk 0:00:19]}  Qg7 {[%clk 0:00:04]} 32. Qxb4 {[%clk 0:00:19]}  Re2 {[%clk 0:00:03]} 33. Qe7 {[%clk 0:00:15]}  h5 {[%clk 0:00:02]} 34. Nf6+ {[%clk 0:00:14]}  Kh6 {[%clk 0:00:02]} 35. Ne8 {[%clk 0:00:14]}  Qe5 {[%clk 0:00:02]} 36. Qf8+ {[%clk 0:00:12]}  Kg5 {[%clk 0:00:02]} 37. f4+ {[%clk 0:00:13]}  Qxf4 {[%clk 0:00:02]} 38. Rxf4 {[%clk 0:00:13]}  Kxf4 {[%clk 0:00:03]} 39. Qxf7+ {[%clk 0:00:13]}  Ke3 {[%clk 0:00:04]} 40. Qf3+ {[%clk 0:00:13]}  Kd2 {[%clk 0:00:04]} 41. Nc7 {[%clk 0:00:08]}  e5 {[%clk 0:00:04]} 42. Nd5 {[%clk 0:00:06]}  g5 {[%clk 0:00:05]} 43. Qc3+ {[%clk 0:00:06]}  Kd1 {[%clk 0:00:05]} 44. Ne3+ {[%clk 0:00:06]} 1-0


[Site "https://www.chess.com"]

[Event "Titled Tuesday Blitz June 6 Late 2023"]
[White "Gubajdullin, Alexei"]
[Black "benny_aizenberg"]
[WhiteFideId "4141202"]
[WhiteElo "2279"]
[BlackElo "2714"]
[Result "1-0"]
[Round "11"]
[TimeControl "180+2"]
[Date "2023.06.07"]
[WhiteClock "0:00:20"]
[BlackClock "0:00:01"]
[Board "31"]

1. d4 {[%clk 0:03:00]}  Nf6 {[%clk 0:02:58]} 2. Nf3 {[%clk 0:02:58]}  e6 {[%clk 0:02:58]} 3. Bf4 {[%clk 0:02:58]}  c5 {[%clk 0:02:55]} 4. e3 {[%clk 0:02:57]}  Nc6 {[%clk 0:02:55]} 5. h3 {[%clk 0:02:57]}  d5 {[%clk 0:02:53]} 6. Nbd2 {[%clk 0:02:56]}  Bd6 {[%clk 0:02:47]} 7. Bxd6 {[%clk 0:02:55]}  Qxd6 {[%clk 0:02:47]} 8. Bb5 {[%clk 0:02:55]}  O-O {[%clk 0:02:45]} 9. O-O {[%clk 0:02:52]}  a6 {[%clk 0:02:43]} 10. Bxc6 {[%clk 0:02:52]}  bxc6 {[%clk 0:02:44]} 11. c3 {[%clk 0:02:51]}  Nd7 {[%clk 0:02:37]} 12. Qa4 {[%clk 0:02:48]}  cxd4 {[%clk 0:02:31]} 13. cxd4 {[%clk 0:02:47]}  c5 {[%clk 0:02:31]} 14. Qa3 {[%clk 0:02:46]}  Qb6 {[%clk 0:02:27]} 15. dxc5 {[%clk 0:02:45]}  Qxc5 {[%clk 0:02:17]} 16. b4 {[%clk 0:02:43]}  Qe7 {[%clk 0:02:11]} 17. Qa5 {[%clk 0:02:32]}  Rb8 {[%clk 0:02:07]} 18. a3 {[%clk 0:02:30]}  Bb7 {[%clk 0:01:53]} 19. Rac1 {[%clk 0:02:27]}  Rfc8 {[%clk 0:01:52]} 20. Rc7 {[%clk 0:02:22]}  Qd6 {[%clk 0:01:35]} 21. Rfc1 {[%clk 0:02:21]}  Nb6 {[%clk 0:01:33]} 22. Qc5 {[%clk 0:02:12]}  Qxc5 {[%clk 0:01:20]} 23. R1xc5 {[%clk 0:02:11]}  Rxc7 {[%clk 0:01:14]} 24. Rxc7 {[%clk 0:02:10]}  Na8 {[%clk 0:01:13]} 25. Rc5 {[%clk 0:01:57]}  Rc8 {[%clk 0:01:11]} 26. Nb3 {[%clk 0:01:56]}  Nb6 {[%clk 0:00:56]} 27. Na5 {[%clk 0:01:45]}  Ba8 {[%clk 0:00:54]} 28. Ne5 {[%clk 0:01:41]}  f6 {[%clk 0:00:38]} 29. Nd7 {[%clk 0:01:39]}  Rxc5 {[%clk 0:00:36]} 30. Nxc5 {[%clk 0:01:39]}  e5 {[%clk 0:00:31]} 31. Nxa6 {[%clk 0:01:37]}  d4 {[%clk 0:00:30]} 32. exd4 {[%clk 0:01:32]}  exd4 {[%clk 0:00:31]} 33. Nc5 {[%clk 0:01:28]}  Bd5 {[%clk 0:00:31]} 34. f3 {[%clk 0:01:25]}  Kf7 {[%clk 0:00:29]} 35. Kf2 {[%clk 0:01:25]}  Ke7 {[%clk 0:00:28]} 36. Ke2 {[%clk 0:01:25]}  Kd6 {[%clk 0:00:20]} 37. Kd3 {[%clk 0:01:25]}  Ke5 {[%clk 0:00:20]} 38. Ncb3 {[%clk 0:01:18]}  Kf4 {[%clk 0:00:16]} 39. Nxd4 {[%clk 0:01:08]}  Kg3 {[%clk 0:00:15]} 40. Nab3 {[%clk 0:01:03]}  Kxg2 {[%clk 0:00:15]} 41. Nc5 {[%clk 0:01:03]}  Kxh3 {[%clk 0:00:13]} 42. a4 {[%clk 0:01:03]}  h5 {[%clk 0:00:11]} 43. a5 {[%clk 0:01:03]}  Nc8 {[%clk 0:00:11]} 44. b5 {[%clk 0:01:02]}  h4 {[%clk 0:00:11]} 45. b6 {[%clk 0:00:57]}  Kg2 {[%clk 0:00:10]} 46. Nf5 {[%clk 0:00:28]}  Kxf3 {[%clk 0:00:03]} 47. Nxh4+ {[%clk 0:00:26]}  Kf4 {[%clk 0:00:02]} 48. Kd4 {[%clk 0:00:23]}  g5 {[%clk 0:00:01]} 49. Kxd5 {[%clk 0:00:20]} 1-0


[Site "https://www.chess.com"]

[Event "Titled Tuesday Blitz June 6 Late 2023"]
[White "Skvortsov, Andrei"]
[Black "Makaraci, Tunahan"]
[WhiteFideId "24108600"]
[BlackFideId "6356559"]
[WhiteElo "2259"]
[BlackElo "2160"]
[Result "1-0"]
[Round "11"]
[TimeControl "180+2"]
[Date "2023.06.07"]
[WhiteClock "0:01:20"]
[BlackClock "0:00:04"]
[Board "32"]

1. d4 {[%clk 0:03:00]}  d5 {[%clk 0:02:59]} 2. c4 {[%clk 0:02:55]}  e6 {[%clk 0:02:59]} 3. Nf3 {[%clk 0:02:54]}  c5 {[%clk 0:02:59]} 4. cxd5 {[%clk 0:02:53]}  exd5 {[%clk 0:02:59]} 5. Nc3 {[%clk 0:02:54]}  Nf6 {[%clk 0:03:00]} 6. Bg5 {[%clk 0:02:52]}  Be6 {[%clk 0:03:00]} 7. e3 {[%clk 0:02:52]}  c4 {[%clk 0:03:01]} 8. Be2 {[%clk 0:02:52]}  Bb4 {[%clk 0:02:58]} 9. O-O {[%clk 0:02:52]}  Nbd7 {[%clk 0:02:58]} 10. Ne5 {[%clk 0:02:50]}  Qa5 {[%clk 0:02:58]} 11. Nxd7 {[%clk 0:02:50]}  Nxd7 {[%clk 0:02:55]} 12. Bf3 {[%clk 0:02:30]}  O-O {[%clk 0:02:50]} 13. Ne2 {[%clk 0:02:23]}  h6 {[%clk 0:02:47]} 14. Bf4 {[%clk 0:02:19]}  Be7 {[%clk 0:02:44]} 15. h3 {[%clk 0:02:18]}  Nf6 {[%clk 0:02:43]} 16. Be5 {[%clk 0:02:15]}  b5 {[%clk 0:02:42]} 17. a3 {[%clk 0:02:13]}  Qb6 {[%clk 0:02:37]} 18. Nc3 {[%clk 0:02:13]}  Rad8 {[%clk 0:02:36]} 19. g4 {[%clk 0:02:04]}  a5 {[%clk 0:02:33]} 20. Bg2 {[%clk 0:02:04]}  b4 {[%clk 0:02:32]} 21. axb4 {[%clk 0:02:05]}  axb4 {[%clk 0:02:33]} 22. Ne2 {[%clk 0:02:05]}  Ra8 {[%clk 0:02:19]} 23. f4 {[%clk 0:02:05]}  Ne4 {[%clk 0:02:08]} 24. f5 {[%clk 0:02:03]}  Bd7 {[%clk 0:02:08]} 25. Bxe4 {[%clk 0:02:03]}  dxe4 {[%clk 0:02:08]} 26. Ng3 {[%clk 0:02:03]}  Bc6 {[%clk 0:02:02]} 27. Rxa8 {[%clk 0:02:00]}  Rxa8 {[%clk 0:02:01]} 28. Bxg7 {[%clk 0:02:01]}  Ba4 {[%clk 0:01:30]} 29. Qe1 {[%clk 0:01:56]}  Bg5 {[%clk 0:01:08]} 30. Be5 {[%clk 0:01:52]}  Rc8 {[%clk 0:01:04]} 31. Nxe4 {[%clk 0:01:51]}  c3 {[%clk 0:01:01]} 32. Nc5 {[%clk 0:01:39]}  Bb5 {[%clk 0:00:39]} 33. Rf2 {[%clk 0:01:36]}  Rxc5 {[%clk 0:00:18]} 34. dxc5 {[%clk 0:01:35]}  Qxc5 {[%clk 0:00:19]} 35. Bd4 {[%clk 0:01:35]}  Qd5 {[%clk 0:00:19]} 36. bxc3 {[%clk 0:01:33]}  Bc6 {[%clk 0:00:19]} 37. e4 {[%clk 0:01:33]}  Qc4 {[%clk 0:00:15]} 38. Qe2 {[%clk 0:01:32]}  Qb3 {[%clk 0:00:10]} 39. Qa6 {[%clk 0:01:21]}  Bxe4 {[%clk 0:00:04]} 40. Qc8+ {[%clk 0:01:20]} 1-0


[Site "https://www.chess.com"]

[Event "Titled Tuesday Blitz June 6 Late 2023"]
[White "Mortazavi, Ali"]
[Black "Sun, Rick"]
[WhiteFideId "401323"]
[BlackFideId "30909481"]
[WhiteElo "2339"]
[BlackElo "2169"]
[Result "1-0"]
[Round "11"]
[TimeControl "180+2"]
[Date "2023.06.07"]
[WhiteClock "0:00:08"]
[BlackClock "0:00:10"]
[Board "33"]

1. Nf3 {[%clk 0:02:19]}  d6 {[%clk 0:03:00]} 2. e4 {[%clk 0:02:19]}  Nf6 {[%clk 0:02:59]} 3. Nc3 {[%clk 0:02:19]}  e5 {[%clk 0:02:58]} 4. d4 {[%clk 0:02:19]}  Nbd7 {[%clk 0:02:58]} 5. Bc4 {[%clk 0:02:19]}  Be7 {[%clk 0:02:57]} 6. a4 {[%clk 0:02:20]}  c6 {[%clk 0:02:57]} 7. Ba2 {[%clk 0:02:21]}  Qc7 {[%clk 0:02:58]} 8. O-O {[%clk 0:02:21]}  O-O {[%clk 0:02:58]} 9. Re1 {[%clk 0:02:18]}  h6 {[%clk 0:02:58]} 10. Nh4 {[%clk 0:02:17]}  Re8 {[%clk 0:02:52]} 11. Nf5 {[%clk 0:02:16]}  Nf8 {[%clk 0:02:51]} 12. Qf3 {[%clk 0:02:11]}  Bxf5 {[%clk 0:02:48]} 13. Qxf5 {[%clk 0:02:07]}  exd4 {[%clk 0:02:47]} 14. Ne2 {[%clk 0:02:06]}  c5 {[%clk 0:02:29]} 15. Bc4 {[%clk 0:02:03]}  Qd7 {[%clk 0:02:19]} 16. Qf3 {[%clk 0:01:59]}  a6 {[%clk 0:02:15]} 17. Nf4 {[%clk 0:01:37]}  Ng4 {[%clk 0:00:33]} 18. Bd5 {[%clk 0:00:48]}  Nf6 {[%clk 0:00:24]} 19. Qg3 {[%clk 0:00:42]}  Nxd5 {[%clk 0:00:20]} 20. Nxd5 {[%clk 0:00:42]}  Ng6 {[%clk 0:00:19]} 21. Nb6 {[%clk 0:00:40]}  Qc6 {[%clk 0:00:18]} 22. Nxa8 {[%clk 0:00:41]}  Rxa8 {[%clk 0:00:18]} 23. b3 {[%clk 0:00:28]}  Re8 {[%clk 0:00:18]} 24. a5 {[%clk 0:00:27]}  Bf6 {[%clk 0:00:17]} 25. Bd2 {[%clk 0:00:15]}  Rxe4 {[%clk 0:00:15]} 26. Qd3 {[%clk 0:00:13]}  d5 {[%clk 0:00:13]} 27. f3 {[%clk 0:00:13]}  c4 {[%clk 0:00:09]} 28. Qf1 {[%clk 0:00:11]}  Re6 {[%clk 0:00:08]} 29. f4 {[%clk 0:00:08]}  d3 {[%clk 0:00:07]} 30. f5 {[%clk 0:00:08]}  Bxa1 {[%clk 0:00:06]} 31. fxe6 {[%clk 0:00:08]}  Bd4+ {[%clk 0:00:06]} 32. Kh1 {[%clk 0:00:08]}  fxe6 {[%clk 0:00:07]} 33. bxc4 {[%clk 0:00:07]}  dxc2 {[%clk 0:00:06]} 34. cxd5 {[%clk 0:00:07]}  Qxd5 {[%clk 0:00:07]} 35. Bc1 {[%clk 0:00:07]}  Kh7 {[%clk 0:00:07]} 36. Qd3 {[%clk 0:00:06]}  e5 {[%clk 0:00:06]} 37. h4 {[%clk 0:00:06]}  Qb5 {[%clk 0:00:03]} 38. Qe4 {[%clk 0:00:04]}  Qc6 {[%clk 0:00:03]} 39. Qf5 {[%clk 0:00:05]}  Qf6 {[%clk 0:00:03]} 40. Qe4 {[%clk 0:00:04]}  Qxh4+ {[%clk 0:00:03]} 41. Qxh4 {[%clk 0:00:03]}  Nxh4 {[%clk 0:00:04]} 42. Re2 {[%clk 0:00:04]}  Nf5 {[%clk 0:00:04]} 43. Rxc2 {[%clk 0:00:04]}  Ng3+ {[%clk 0:00:04]} 44. Kh2 {[%clk 0:00:03]}  Nf1+ {[%clk 0:00:04]} 45. Kh3 {[%clk 0:00:03]}  g5 {[%clk 0:00:04]} 46. Rc7+ {[%clk 0:00:03]}  Kg6 {[%clk 0:00:04]} 47. Rxb7 {[%clk 0:00:04]}  h5 {[%clk 0:00:05]} 48. g3 {[%clk 0:00:03]}  g4+ {[%clk 0:00:02]} 49. Kg2 {[%clk 0:00:03]}  Ne3+ {[%clk 0:00:02]} 50. Bxe3 {[%clk 0:00:03]}  Bxe3 {[%clk 0:00:03]} 51. Rb6+ {[%clk 0:00:04]}  Kf5 {[%clk 0:00:04]} 52. Rxa6 {[%clk 0:00:04]}  e4 {[%clk 0:00:02]} 53. Ra8 {[%clk 0:00:04]}  Bd4 {[%clk 0:00:03]} 54. Rf8+ {[%clk 0:00:05]}  Ke6 {[%clk 0:00:03]} 55. a6 {[%clk 0:00:05]}  h4 {[%clk 0:00:03]} 56. gxh4 {[%clk 0:00:05]}  Bc5 {[%clk 0:00:04]} 57. Re8+ {[%clk 0:00:05]}  Kf5 {[%clk 0:00:04]} 58. Rc8 {[%clk 0:00:03]}  Bd4 {[%clk 0:00:04]} 59. Rd8 {[%clk 0:00:03]}  Be3 {[%clk 0:00:04]} 60. h5 {[%clk 0:00:04]}  Kg5 {[%clk 0:00:04]} 61. Rd5+ {[%clk 0:00:04]}  Kh6 {[%clk 0:00:04]} 62. Re5 {[%clk 0:00:05]}  Ba7 {[%clk 0:00:03]} 63. Kg3 {[%clk 0:00:05]}  Bb8 {[%clk 0:00:03]} 64. Kxg4 {[%clk 0:00:05]}  Bxe5 {[%clk 0:00:03]} 65. a7 {[%clk 0:00:06]}  Bf6 {[%clk 0:00:04]} 66. a8=Q {[%clk 0:00:06]}  e3 {[%clk 0:00:04]} 67. Qe4 {[%clk 0:00:06]}  Kg7 {[%clk 0:00:05]} 68. Qg6+ {[%clk 0:00:06]}  Kh8 {[%clk 0:00:06]} 69. Qxf6+ {[%clk 0:00:06]}  Kh7 {[%clk 0:00:06]} 70. Qe7+ {[%clk 0:00:05]}  Kg8 {[%clk 0:00:07]} 71. Qxe3 {[%clk 0:00:06]}  Kh8 {[%clk 0:00:08]} 72. Qa7 {[%clk 0:00:06]}  Kg8 {[%clk 0:00:08]} 73. Kg5 {[%clk 0:00:07]}  Kh8 {[%clk 0:00:09]} 74. Kg6 {[%clk 0:00:07]}  Kg8 {[%clk 0:00:10]} 75. Qa8# {[%clk 0:00:08]} 1-0


[Site "https://www.chess.com"]